fUST/lending_fUST_20260209
["ID","MTS","AMOUNT","RATE_DAILY","PERIOD"]
[404874098,1770641631822,-309.30605,0.000429,120]
[404874099,1770641631845,-1500.0,0.00043,120]
[404874100,1770641631869,-1000.0,0.00043,120]
[404874101,1770641631892,-1022.0,0.00043,30]
[404874102,1770641631915,-746.61,0.00043386,120]
[404874103,1770641631939,-3462.95247728,0.000434,120]
[404874104,1770641631962,-1888609.80055757,0.000435,120]
[404874105,1770641672951,-1324.2987456,0.00030137,120]
[404874106,1770641672977,-154.1,0.000399,30]
[404874107,1770641673004,-172.98,0.0004,30]
[404874108,1770641673029,-334.82823481,0.00040203,31]
[404874109,1770641673073,-600.0,0.00040697,60]
[404874110,1770641673097,-706.52,0.00040993,120]
[404874111,1770641673124,-172.98,0.00042,30]
[404874112,1770641673148,-1866990.88318727,0.000435,120]
[404874113,1770641673172,-129543.40983232,0.000435,120]
[404874114,1770641677913,-160940.01391795,0.000435,120]
[404874115,1770641677936,-113771.81137285,0.000435,120]
[404874116,1770641677960,-626947.78246485,0.000435,120]
[404874117,1770641677984,-261.0,0.000435,60]
[404874118,1770641678009,-540.0,0.000435,60]
[404874119,1770641678033,-200.0,0.00043695,120]
[404874120,1770641678056,-405.78928624,0.000438,30]
[404874121,1770641678080,-200.0,0.00043802,120]
[404874122,1770641678103,-200.0,0.00043812,120]
[404874123,1770641678126,-206.63120502,0.00043859,90]
[404874124,1770641678151,-746.61,0.00043984,120]
[404874125,1770641678175,-1500.0,0.00044,120]
[404874126,1770641678200,-300.0,0.00044,120]
[404874127,1770641678225,-1022.0,0.00044,30]
[404874128,1770641678250,-172.98,0.000441,30]
[404874129,1770641678276,-746.61,0.00044583,120]
[404874130,1770641678303,-720.0,0.00044767,60]
[404874131,1770641678326,-328.19,0.000448,120]
[404874132,1770641678351,-200.0,0.00044825,120]
[404874133,1770641678374,-941.0993479,0.000449,120]
[404874134,1770641678396,-148138.0,0.00045,120]
[404874135,1770641678420,-470.81986855,0.00045,120]
[404874136,1770641678443,-1016.33394124,0.00045,30]
[404874137,1770641678466,-572.40928904,0.00045,120]
[404874138,1770641678620,-1500.0,0.00045,120]
[404874139,1770641678644,-1188.45,0.00045,120]
[404874140,1770641678667,-172.0,0.00045,30]
[404874141,1770641678691,-7051.796185,0.00045,120]
[404874142,1770641678714,-929539.67312136,0.00045,120]
[404874143,1770641682981,-3881257.30099744,0.00045,120]
[404874144,1770641683007,-1040.0,0.00045,120]
[404874145,1770641683033,-195.0,0.00045,120]
[404874146,1770641683058,-200.0,0.00045,120]
[404874147,1770641683083,-779.0,0.00045,60]
[404874148,1770641683109,-495.0,0.00045,60]
[404874149,1770641683138,-746.61,0.00045181,120]
[404874150,1770641683165,-266.36,0.00045205,60]
[404874151,1770641683192,-151.39402418,0.00045286,60]
[404874152,1770641683220,-233.08,0.000453,120]
[404874153,1770641683246,-838.34977059,0.000454,120]
[404874154,1770641683274,-200.0,0.00045443,120]
[404874155,1770641683303,-2267.69,0.00045481,30]
[404874156,1770641683330,-200.0,0.00045645,120]
[404874157,1770641683358,-746.61,0.00045779,120]
[404874158,1770641683384,-1000.0,0.00045802,120]
[404874159,1770641683410,-440.06,0.00045802,120]
[404874160,1770641683435,-1000.0,0.00045879,120]
[404874161,1770641683460,-151.39402418,0.0004594,60]
[404874162,1770641683488,-200.0,0.00045996,120]
[404874163,1770641683514,-4442.45072783,0.00046,120]
[404874164,1770641683540,-1064.59401463,0.00046,30]
[404874165,1770641683568,-300.0,0.00046,120]
[404874166,1770641683594,-1500.0,0.00046,120]
[404874167,1770641683619,-151.39402418,0.00046065,60]
[404874168,1770641683645,-499.99999999,0.00046184,60]
[404874169,1770641683672,-151.40915451,0.00046294,60]
[404874170,1770641683700,-172.98,0.00046305,30]
[404874171,1770641683728,-746.61,0.00046377,120]
[404874172,1770641683756,-1444.0,0.00046466,120]
[404874173,1770641683784,-200.0,0.00046587,120]
[404874174,1770641683812,-151.51507888,0.0004687,60]
[404874175,1770641683841,-200.0,0.000469,120]
[404874176,1770641683869,-746.61,0.00046976,120]
[404874177,1770641683896,-1500.0,0.00047,120]
[404874178,1770641683924,-200.0,0.00047126,120]
[404874179,1770641683951,-151.46968791,0.00047316,60]
[404874180,1770641683979,-200.0,0.00047353,120]
[404874181,1770641684006,-15000.0,0.000474,120]
[404874182,1770641684032,-1317.90548539,0.00047535,30]
[404874183,1770641684061,-746.61,0.00047574,120]
[404874184,1770641684087,-151.40915451,0.00047711,60]
[404874185,1770641684115,-300.0,0.00048,120]
[404874186,1770641684141,-502.14538854,0.00048,120]
[404874187,1770641684167,-1000.0,0.00048,120]
[404874188,1770641684194,-1500.0,0.00048,120]
[404874189,1770641684223,-152.13290659,0.00048,120]
[404874190,1770641684250,-151.64315601,0.00048005,60]
[404874191,1770641684279,-151.39402418,0.00048007,60]
[404874192,1770641684307,-50000.0,0.0004801,120]
[404874193,1770641684345,-50000.0,0.00048012,120]
[404874194,1770641684376,-50000.0,0.00048014,120]
[404874195,1770641684405,-7332.0,0.00048016,120]
[404874196,1770641684433,-50000.0,0.0004802,120]
[404874197,1770641684462,-50000.0,0.0004803,120]
[404874198,1770641684491,-50000.0,0.0004805,120]
[404874199,1770641684519,-50000.0,0.0004806,120]
[404874200,1770641684548,-50000.0,0.0004807,120]
[404874201,1770641684579,-50000.0,0.000481,120]
[404874202,1770641684610,-50000.0,0.0004812,120]
[404874203,1770641684641,-50000.0,0.0004813,120]
[404874204,1770641684671,-50000.0,0.0004815,120]
[404874205,1770641684702,-746.61,0.00048172,120]
[404874206,1770641684731,-50000.0,0.0004819,120]
[404874207,1770641684760,-200.0,0.000482,120]
[404874208,1770641684788,-309.30605,0.000482,120]
[404874209,1770641684818,-4535.39,0.00048256,30]
[404874210,1770641684848,-50000.0,0.0004829,120]
[404874211,1770641684876,-184.54303921,0.00048314,60]
[404874212,1770641684905,-3027.91430413,0.00048398,120]
[404874213,1770641684933,-1530.0,0.0004847,62]
[404874214,1770641684963,-1000.0,0.00048498,120]
[404874215,1770641684991,-4000.0,0.00048499,120]
[404874216,1770641685020,-640097.01843543,0.000485,30]
[404874217,1770641685049,-151.40915451,0.00048526,60]
[404874218,1770641685078,-500.0,0.00048555,35]
[404874219,1770641685107,-500.0,0.00048555,35]
[404874220,1770641685137,-500.0,0.00048555,35]
[404874221,1770641685168,-500.0,0.00048555,35]
[404874222,1770641685200,-500.0,0.00048555,35]
[404874223,1770641685233,-500.0,0.00048555,35]
[404874224,1770641685264,-500.0,0.00048555,35]
[404874225,1770641685295,-500.0,0.00048555,35]
[404874226,1770641685326,-506.0,0.00048555,35]
[404874227,1770641685357,-500.0,0.00048555,35]
[404874228,1770641685538,-500.0,0.00048555,35]
[404874229,1770641685570,-500.0,0.00048555,35]
[404874230,1770641685603,-500.0,0.00048555,35]
[404874231,1770641685635,-500.0,0.00048555,35]
[404874232,1770641685667,-248.0,0.00048555,35]
[404874233,1770641685698,-500.0,0.00048555,35]
[404874234,1770641685729,-500.0,0.00048555,35]
[404874235,1770641685761,-500.0,0.00048555,35]
[404874236,1770641685793,-500.0,0.00048555,35]
[404874237,1770641685823,-500.0,0.00048555,35]
[404874238,1770641685852,-500.0,0.00048555,35]
[404874239,1770641685881,-500.0,0.00048555,35]
[404874240,1770641685910,-314.0,0.00048555,35]
[404874241,1770641685938,-500.0,0.00048555,35]
[404874242,1770641685968,-500.0,0.00048555,35]
[404874243,1770641685998,-500.0,0.00048555,35]
[404874244,1770641686031,-500.0,0.00048555,35]
[404874245,1770641686063,-500.0,0.00048555,35]
[404874246,1770641686095,-500.0,0.00048555,35]
[404874247,1770641686126,-500.0,0.00048555,35]
[404874248,1770641686157,-500.0,0.00048555,35]
[404874249,1770641686187,-500.0,0.00048555,35]
[404874250,1770641686220,-329.0,0.00048555,35]
[404874251,1770641686250,-500.0,0.00048555,35]
[404874252,1770641686281,-509.0,0.00048555,35]
[404874253,1770641686313,-200.0,0.00048621,120]
[404874254,1770641686342,-500.0,0.00048637,35]
[404874255,1770641686374,-500.0,0.00048637,35]
[404874256,1770641686406,-500.0,0.00048637,35]
[404874257,1770641686441,-500.0,0.00048637,35]
[404874258,1770641686472,-500.0,0.00048637,35]
[404874259,1770641686503,-203.0,0.00048637,35]
[404874260,1770641686533,-500.0,0.00048637,35]
[404874261,1770641686564,-500.0,0.00048637,35]
[404874262,1770641686596,-649.0,0.00048637,35]
[404874263,1770641686626,-500.0,0.00048637,35]
[404874264,1770641686656,-500.0,0.00048637,35]
[404874265,1770641686685,-500.0,0.00048637,35]
[404874266,1770641686716,-500.0,0.00048637,35]
[404874267,1770641686747,-288.0,0.00048637,35]
[404874268,1770641686779,-500.0,0.00048637,35]
[404874269,1770641686812,-500.0,0.00048637,35]
[404874270,1770641686847,-500.0,0.00048637,35]
[404874271,1770641686882,-500.0,0.00048637,35]
[404874272,1770641686915,-500.0,0.00048637,35]
[404874273,1770641686946,-397.0,0.00048637,35]
[404874274,1770641686976,-605.0,0.00048637,35]
[404874275,1770641687007,-245.0,0.0004865,77]
[404874276,1770641687038,-151.39402418,0.00048719,60]
[404874277,1770641687071,-500.0,0.00048719,35]
[404874278,1770641687101,-500.0,0.00048719,35]
[404874279,1770641687131,-500.0,0.00048719,35]
[404874280,1770641687161,-302.0,0.00048719,35]
[404874281,1770641687193,-500.0,0.00048719,35]
[404874282,1770641687228,-599.0,0.00048719,35]
[404874283,1770641687262,-500.0,0.00048719,35]
[404874284,1770641687298,-500.0,0.00048719,35]
[404874285,1770641687332,-525.0,0.00048719,35]
[404874286,1770641687363,-500.0,0.00048719,35]
[404874287,1770641687398,-500.0,0.00048719,35]
[404874288,1770641687430,-500.0,0.00048719,35]
[404874289,1770641687463,-431.0,0.00048719,35]
[404874290,1770641687495,-403.0,0.00048719,35]
[404874291,1770641687526,-746.61,0.00048771,120]
[404874292,1770641687556,-200.0,0.00048881,120]
[404874293,1770641687586,-2000.0,0.000489,120]
[404874294,1770641687618,-2014.97874116,0.00049,120]
[404874295,1770641687648,-7784.0,0.00049,120]
[404874296,1770641687678,-1067.0030028,0.00049,120]
[404874297,1770641687711,-2000.0,0.00049,120]
[404874298,1770641687742,-551.15889452,0.00049,120]
[404874299,1770641687774,-151.0,0.00049205,120]
[404874300,1770641687808,-864.0,0.00049243,120]
[404874301,1770641687840,-250.0,0.00049314,30]
[404874302,1770641687870,-179.45498576,0.00049314,30]
[404874303,1770641687901,-258.32044638,0.00049314,30]
[404874304,1770641687932,-1930.79009565,0.00049314,30]
[404874305,1770641687965,-500.0,0.00049314,30]
[404874306,1770641688002,-151.0,0.00049314,30]
[404874307,1770641688041,-156.587,0.00049314,60]
[404874308,1770641688077,-162.380719,0.00049314,90]
[404874309,1770641688117,-168.3888056,0.00049314,120]
[404874310,1770641688150,-164.47674527,0.00049315,120]
[404874311,1770641688183,-500.0,0.00049315,120]
[404874312,1770641688218,-441.86398942,0.00049315,120]
[404874313,1770641688254,-16856.68485141,0.00049315,30]
[404874314,1770641688289,-500.0,0.00049315,120]
[404874315,1770641688320,-500.0,0.00049315,120]
[404874316,1770641688352,-500.0,0.00049315,120]
[404874317,1770641688384,-334.52277967,0.00049315,120]
[404874318,1770641688415,-500.0,0.00049315,120]
[404874319,1770641688447,-441.09052783,0.00049315,120]
[404874320,1770641688480,-599.32973032,0.00049315,120]
[404874321,1770641688513,-500.0,0.00049315,120]
[404874322,1770641688545,-500.0,0.00049315,120]
[404874323,1770641688577,-500.0,0.00049315,120]
[404874324,1770641688607,-500.0,0.00049315,120]
[404874325,1770641688638,-221.38150099,0.00049315,120]
[404874326,1770641688667,-500.0,0.00049315,120]
[404874327,1770641688698,-389.60397015,0.00049315,120]
[404874328,1770641688728,-500.0,0.00049315,120]
[404874329,1770641688757,-500.0,0.00049315,53]
[404874330,1770641688895,-513.99985955,0.00049315,120]
[404874331,1770641688925,-505.65355948,0.00049315,120]
[404874332,1770641688957,-500.0,0.00049315,120]
[404874333,1770641688987,-169.72675475,0.00049315,120]
[404874334,1770641689019,-500.0,0.00049315,120]
[404874335,1770641689050,-500.0,0.00049315,120]
[404874336,1770641689082,-797.77,0.00049315,120]
[404874337,1770641689115,-3252.37,0.00049315,120]
[404874338,1770641689148,-241.0534214,0.00049315,120]
[404874339,1770641689180,-535.44374016,0.00049315,120]
[404874340,1770641689212,-500.0,0.00049315,120]
[404874341,1770641689250,-617.98585279,0.00049315,120]
[404874342,1770641689284,-2953.2,0.00049315,120]
[404874343,1770641689319,-297.74052114,0.00049315,120]
[404874344,1770641689351,-500.0,0.00049315,120]
[404874345,1770641689381,-500.0,0.00049315,120]
[404874346,1770641689412,-500.0,0.00049315,120]
[404874347,1770641689442,-500.0,0.00049315,120]
[404874348,1770641689474,-509.54767179,0.00049315,120]
[404874349,1770641689505,-380.65462605,0.00049315,120]
[404874350,1770641689536,-500.0,0.00049315,120]
[404874351,1770641689569,-500.0,0.00049315,120]
[404874352,1770641689598,-500.0,0.00049315,120]
[404874353,1770641689628,-525.31812738,0.00049315,120]
[404874354,1770641689661,-500.0,0.00049315,120]
[404874355,1770641689693,-500.0,0.00049315,120]
[404874356,1770641689725,-500.0,0.00049315,120]
[404874357,1770641689756,-519.40443681,0.00049315,120]
[404874358,1770641689788,-500.0,0.00049315,120]
[404874359,1770641689819,-189.35931067,0.00049315,120]
[404874360,1770641689853,-1711.02,0.00049315,120]
[404874361,1770641689886,-880.16,0.00049315,120]
[404874362,1770641689918,-543.79984557,0.00049315,120]
[404874363,1770641689949,-573.47644109,0.00049315,120]
[404874364,1770641689980,-519.52134805,0.00049315,120]
[404874365,1770641690012,-500.0,0.00049315,120]
[404874366,1770641690042,-499.22393283,0.00049315,120]
[404874367,1770641690071,-500.0,0.00049315,120]
[404874368,1770641690103,-500.0,0.00049315,120]
[404874369,1770641690133,-529.171065,0.00049315,120]
[404874370,1770641690164,-500.0,0.00049315,120]
[404874371,1770641690195,-194.59245267,0.00049315,120]
[404874372,1770641690227,-506.5864833,0.00049315,120]
[404874373,1770641690257,-500.0,0.00049315,120]
[404874374,1770641690287,-218.56071638,0.00049315,120]
[404874375,1770641690316,-500.0,0.00049315,120]
[404874376,1770641690345,-546.05,0.00049315,120]
[404874377,1770641690373,-500.0,0.00049315,120]
[404874378,1770641690402,-500.0,0.00049315,120]
[404874379,1770641690432,-500.0,0.00049315,120]
[404874380,1770641690462,-522.80758013,0.00049315,120]
[404874381,1770641690490,-598.84902679,0.00049315,120]
[404874382,1770641690518,-500.0,0.00049315,120]
[404874383,1770641690546,-552.57922192,0.00049315,120]
[404874384,1770641690575,-502.57337799,0.00049315,120]
[404874385,1770641690605,-504.02229482,0.00049315,120]
[404874386,1770641690634,-510.8683181,0.00049315,120]
[404874387,1770641690663,-502.92869266,0.00049315,120]
[404874388,1770641690691,-505.03409457,0.00049315,120]
[404874389,1770641690723,-500.0,0.00049315,120]
[404874390,1770641690751,-507.2854192,0.00049315,120]
[404874391,1770641690779,-2373.41,0.00049315,30]
[404874392,1770641690807,-500.93074508,0.00049315,120]
[404874393,1770641690835,-500.0,0.00049315,120]
[404874394,1770641690863,-213.21553117,0.00049315,120]
[404874395,1770641690892,-500.0,0.00049315,120]
[404874396,1770641690920,-500.0,0.00049315,120]
[404874397,1770641690948,-541.08238246,0.00049315,120]
[404874398,1770641690976,-503.12800076,0.00049315,120]
[404874399,1770641691003,-504.03927025,0.00049315,120]
[404874400,1770641691032,-158.58199034,0.00049315,120]
[404874401,1770641691058,-511.33055604,0.00049315,120]
[404874402,1770641691085,-511.18253465,0.00049315,120]
[404874403,1770641691114,-189.83023233,0.00049315,120]
[404874404,1770641691142,-189.90833044,0.00049315,120]
[404874405,1770641691171,-502.53309437,0.00049315,120]
[404874406,1770641691198,-500.0,0.00049315,120]
[404874407,1770641691225,-802.85,0.00049315,120]
[404874408,1770641691252,-500.0,0.00049315,120]
[404874409,1770641691279,-584.76911445,0.00049315,120]
[404874410,1770641691308,-550.28,0.00049315,120]
[404874411,1770641691335,-500.0,0.00049315,120]
[404874412,1770641691361,-500.0,0.00049315,120]
[404874413,1770641691387,-500.0,0.00049315,120]
[404874414,1770641691412,-500.0,0.00049315,120]
[404874415,1770641691438,-439.90680621,0.00049315,120]
[404874416,1770641691463,-500.0,0.00049315,120]
[404874417,1770641691488,-859.94,0.00049315,120]
[404874418,1770641691516,-500.0,0.00049315,120]
[404874419,1770641691543,-282.46176837,0.00049315,120]
[404874420,1770641691568,-263.38553367,0.00049315,120]
[404874421,1770641691594,-500.0,0.00049315,120]
[404874422,1770641691619,-1209.05404901,0.00049315,120]
[404874423,1770641691645,-500.0,0.00049315,120]
[404874424,1770641691670,-500.0,0.00049315,120]
[404874425,1770641691695,-500.0,0.00049315,120]
[404874426,1770641691720,-500.0,0.00049315,120]
[404874427,1770641691745,-500.0,0.00049315,120]
[404874428,1770641691769,-500.0,0.00049315,120]
[404874429,1770641691795,-500.0,0.00049315,120]
[404874430,1770641691818,-500.0,0.00049315,120]
[404874431,1770641691843,-500.0,0.00049315,120]
[404874432,1770641691867,-153.38436167,0.00049315,120]
[404874433,1770641691891,-500.0,0.00049315,120]
[404874434,1770641691915,-500.0,0.00049315,120]
[404874435,1770641692048,-500.0,0.00049315,120]
[404874436,1770641692074,-500.0,0.00049315,120]
[404874437,1770641692099,-609.83380113,0.00049315,120]
[404874438,1770641692124,-500.0,0.00049315,120]
[404874439,1770641692150,-500.0,0.00049315,120]
[404874440,1770641692175,-500.0,0.00049315,120]
[404874441,1770641692199,-500.0,0.00049315,120]
[404874442,1770641692224,-500.0,0.00049315,120]
[404874443,1770641692255,-193.9518494,0.00049315,120]
[404874444,1770641692279,-500.0,0.00049315,120]
[404874445,1770641692304,-500.0,0.00049315,120]
[404874446,1770641692329,-500.0,0.00049315,120]
[404874447,1770641692354,-500.0,0.00049315,30]
[404874448,1770641692379,-500.0,0.00049315,120]
[404874449,1770641692403,-617.90712018,0.00049315,120]
[404874450,1770641692427,-208.40709229,0.00049315,120]
[404874451,1770641692452,-620.66,0.00049315,120]
[404874452,1770641692476,-500.0,0.00049315,120]
[404874453,1770641692499,-741.78,0.00049315,30]
[404874454,1770641692522,-511.05107971,0.00049315,120]
[404874455,1770641692546,-1130.86,0.00049315,120]
[404874456,1770641692570,-500.0,0.00049315,120]
[404874457,1770641692595,-1559.72,0.00049315,120]
[404874458,1770641692620,-1729.14,0.00049315,30]
[404874459,1770641692644,-311.22459131,0.00049315,120]
[404874460,1770641692669,-500.0,0.00049315,120]
[404874461,1770641692692,-500.0,0.00049315,120]
[404874462,1770641692716,-505.89292446,0.00049315,120]
[404874463,1770641692740,-500.0,0.00049315,120]
[404874464,1770641692765,-520.12771957,0.00049315,120]
[404874465,1770641692790,-500.0,0.00049315,120]
[404874466,1770641692819,-500.0,0.00049315,120]
[404874467,1770641692843,-500.0,0.00049315,120]
[404874468,1770641692867,-500.0,0.00049315,120]
[404874469,1770641692891,-267.84119595,0.00049315,120]
[404874470,1770641692915,-500.0,0.00049315,120]
[404874471,1770641692940,-161.88094603,0.00049315,120]
[404874472,1770641692965,-587.87,0.00049315,120]
[404874473,1770641692989,-500.0,0.00049315,120]
[404874474,1770641693013,-555.82714739,0.00049315,120]
[404874475,1770641693044,-500.0,0.00049315,120]
[404874476,1770641693068,-500.0,0.00049315,120]
[404874477,1770641693093,-158.82869099,0.00049315,120]
[404874478,1770641693117,-450.61697123,0.00049315,120]
[404874479,1770641693142,-500.0,0.00049315,120]
[404874480,1770641693169,-500.0,0.00049315,120]
[404874481,1770641693194,-442.62515395,0.00049315,120]
[404874482,1770641693221,-500.0,0.00049315,120]
[404874483,1770641693247,-154.00855849,0.00049315,120]
[404874484,1770641693271,-500.0,0.00049315,120]
[404874485,1770641693297,-1641.02,0.00049315,120]
[404874486,1770641693322,-269.88528336,0.00049315,120]
[404874487,1770641693347,-566.20326143,0.00049315,120]
[404874488,1770641693374,-270.51614372,0.00049315,120]
[404874489,1770641693400,-542.75050476,0.00049315,120]
[404874490,1770641693428,-500.0,0.00049315,120]
[404874491,1770641693454,-525.49430373,0.00049315,120]
[404874492,1770641693481,-2168.92,0.00049315,120]
[404874493,1770641693509,-7495.28,0.00049315,120]
[404874494,1770641693534,-166.22879273,0.00049315,120]
[404874495,1770641693560,-13103.2,0.00049315,90]
[404874496,1770641693586,-527.46293757,0.00049315,120]
[404874497,1770641693610,-500.0,0.00049315,120]
[404874498,1770641693634,-500.0,0.00049315,120]
[404874499,1770641693660,-500.0,0.00049315,120]
[404874500,1770641693685,-510.7724401,0.00049315,120]
[404874501,1770641693709,-508.89299509,0.00049315,120]
[404874502,1770641693732,-1247.11,0.00049315,120]
[404874503,1770641693756,-500.0,0.00049315,120]
[404874504,1770641693780,-5684.5,0.00049315,120]
[404874505,1770641693805,-500.0,0.00049315,120]
[404874506,1770641693831,-437.63200818,0.00049315,120]
[404874507,1770641693860,-627.82893971,0.00049315,120]
[404874508,1770641693886,-500.0,0.00049315,120]
[404874509,1770641693911,-500.0,0.00049315,120]
[404874510,1770641693936,-500.0,0.00049315,120]
[404874511,1770641693961,-2989.03,0.00049315,120]
[404874512,1770641693987,-170.01195029,0.00049315,120]
[404874513,1770641694014,-500.0,0.00049315,120]
[404874514,1770641694040,-531.3207868,0.00049315,120]
[404874515,1770641694067,-500.0,0.00049315,120]
[404874516,1770641694092,-500.0,0.00049315,120]
[404874517,1770641694118,-500.0,0.00049315,120]
[404874518,1770641694143,-212.56189916,0.00049315,120]
[404874519,1770641694169,-500.0,0.00049315,120]
[404874520,1770641694195,-618.93146548,0.00049315,120]
[404874521,1770641694223,-1565.16,0.00049315,120]
[404874522,1770641694249,-500.0,0.00049315,120]
[404874523,1770641694276,-244.44434144,0.00049315,120]
[404874524,1770641694302,-153.00837104,0.00049315,120]
[404874525,1770641694326,-1143.37,0.00049315,120]
[404874526,1770641694352,-500.0,0.00049315,120]
[404874527,1770641694378,-1831.42,0.00049315,120]
[404874528,1770641694403,-160.35280439,0.00049315,120]
[404874529,1770641694428,-579.04719475,0.00049315,120]
[404874530,1770641694452,-500.0,0.00049315,120]
[404874531,1770641694479,-156.56539319,0.00049315,120]
[404874532,1770641694504,-1686.16561162,0.00049326,120]
[404874533,1770641694529,-746.61,0.00049369,120]
[404874534,1770641694555,-1700.0,0.000494,120]
[404874535,1770641694578,-151.40915451,0.00049421,60]
[404874536,1770641694707,-200.0,0.0004946,120]
[404874537,1770641694735,-200.0,0.00049536,120]
[404874538,1770641694761,-309.09005721,0.00049589,120]
[404874539,1770641694786,-16856.68485141,0.00049589,30]
[404874540,1770641694812,-500.0,0.00049589,120]
[404874541,1770641694837,-500.0,0.00049589,120]
[404874542,1770641694862,-500.0,0.00049589,120]
[404874543,1770641694885,-500.0,0.00049589,120]
[404874544,1770641694910,-500.0,0.00049589,120]
[404874545,1770641694935,-500.0,0.00049589,120]
[404874546,1770641694960,-500.0,0.00049589,120]
[404874547,1770641694985,-500.0,0.00049589,120]
[404874548,1770641695011,-500.0,0.00049589,120]
[404874549,1770641695037,-192.19018526,0.00049589,120]
[404874550,1770641695062,-500.0,0.00049589,53]
[404874551,1770641695086,-500.0,0.00049589,120]
[404874552,1770641695111,-500.0,0.00049589,120]
[404874553,1770641695135,-192.41388136,0.00049589,120]
[404874554,1770641695159,-797.77,0.00049589,120]
[404874555,1770641695184,-3252.37,0.00049589,120]
[404874556,1770641695209,-500.0,0.00049589,120]
[404874557,1770641695239,-2953.2,0.00049589,120]
[404874558,1770641695265,-500.0,0.00049589,120]
[404874559,1770641695289,-566.04121699,0.00049589,120]
[404874560,1770641695314,-500.0,0.00049589,120]
[404874561,1770641695340,-500.0,0.00049589,120]
[404874562,1770641695367,-500.0,0.00049589,120]
[404874563,1770641695392,-500.0,0.00049589,120]
[404874564,1770641695418,-500.0,0.00049589,120]
[404874565,1770641695443,-500.0,0.00049589,120]
[404874566,1770641695467,-500.0,0.00049589,120]
[404874567,1770641695494,-240.5219291,0.00049589,120]
[404874568,1770641695519,-397.15233602,0.00049589,120]
[404874569,1770641695543,-1711.02,0.00049589,120]
[404874570,1770641695568,-880.16,0.00049589,120]
[404874571,1770641695594,-500.0,0.00049589,120]
[404874572,1770641695618,-161.29401388,0.00049589,120]
[404874573,1770641695643,-175.89919587,0.00049589,120]
[404874574,1770641695666,-500.0,0.00049589,120]
[404874575,1770641695691,-500.0,0.00049589,120]
[404874576,1770641695715,-546.05,0.00049589,120]
[404874577,1770641695738,-500.0,0.00049589,120]
[404874578,1770641695762,-492.78564385,0.00049589,120]
[404874579,1770641695786,-500.0,0.00049589,120]
[404874580,1770641695810,-367.89950786,0.00049589,120]
[404874581,1770641695836,-320.57294433,0.00049589,120]
[404874582,1770641695860,-2373.41,0.00049589,30]
[404874583,1770641695894,-358.03403778,0.00049589,120]
[404874584,1770641695921,-483.82262239,0.00049589,120]
[404874585,1770641695947,-500.0,0.00049589,120]
[404874586,1770641695973,-500.0,0.00049589,120]
[404874587,1770641696000,-802.85,0.00049589,120]
[404874588,1770641696027,-500.0,0.00049589,120]
[404874589,1770641696056,-550.28,0.00049589,120]
[404874590,1770641696084,-500.0,0.00049589,120]
[404874591,1770641696112,-500.0,0.00049589,120]
[404874592,1770641696139,-500.0,0.00049589,120]
[404874593,1770641696166,-500.0,0.00049589,120]
[404874594,1770641696193,-500.0,0.00049589,120]
[404874595,1770641696220,-859.94,0.00049589,120]
[404874596,1770641696249,-603.22774676,0.00049589,120]
[404874597,1770641696277,-500.0,0.00049589,120]